bitfinex/quotes_BTCUSD_20240718
["timestamp","ask_amount","ask_price","bid_price","bid_amount"]
[1721290216437,0.06970484,64853.0,64852.0,0.83680656]
[1721290216590,0.04670973,64853.0,64852.0,0.83780656]
[1721290216793,0.04670973,64853.0,64852.0,0.83580656]
[1721290217132,0.04670973,64853.0,64852.0,0.83780656]
[1721290217337,0.00068,64853.0,64852.0,0.83780656]
[1721290217544,0.00068,64853.0,64852.0,1.3632823]
[1721290217694,0.04672202,64853.0,64852.0,1.3632823]
[1721290218587,0.04672202,64853.0,64852.0,1.3641953]
[1721290218943,0.04672202,64853.0,64852.0,1.14711356]
[1721290219279,0.06972325,64853.0,64852.0,1.14711356]
[1721290219427,0.00068,64853.0,64852.0,1.14711356]
[1721290219811,0.06979404,64853.0,64852.0,1.14711356]
[1721290220088,0.04675725,64853.0,64852.0,1.14711356]
[1721290221952,0.00068,64853.0,64852.0,1.27515584]
[1721290222670,0.00068,64853.0,64852.0,1.14711356]
[1721290222844,0.00068,64853.0,64852.0,1.27515221]
[1721290224228,0.00068,64853.0,64852.0,1.41135221]
[1721290225722,0.00068,64853.0,64852.0,1.28331356]
[1721290225927,0.00068,64853.0,64852.0,1.56573315]
[1721290228772,0.00068,64853.0,64852.0,1.4376953]
[1721290228974,0.00068,64853.0,64852.0,1.56573173]
[1721290229201,0.00068,64853.0,64852.0,1.49053173]
[1721290229402,0.00068,64853.0,64852.0,1.56093173]
[1721290231092,0.00068,64853.0,64852.0,1.94432573]
[1721290231410,0.00068,64853.0,64852.0,1.94597702]
[1721290232209,0.00068,64853.0,64852.0,1.94597858]
[1721290235076,0.00068,64853.0,64852.0,1.94597808]
[1721290235750,0.00068,64853.0,64852.0,1.63758408]
[1721290238238,0.00068,64853.0,64852.0,1.63758325]
[1721290239815,0.00068,64853.0,64852.0,1.56718325]
[1721290239990,0.00068,64853.0,64852.0,1.63758325]
[1721290240574,0.04506312,64857.0,64856.0,1.079312]
[1721290240780,0.04506312,64857.0,64856.0,1.20926458]
[1721290240976,0.00834,64859.0,64856.0,1.21484472]
[1721290241182,0.07740626,64859.0,64858.0,1.079277]
[1721290241380,0.07740949,64859.0,64858.0,1.13882958]
[1721290241611,0.07740949,64859.0,64858.0,1.1444096]
[1721290243627,0.07740949,64859.0,64858.0,1.1454096]
[1721290244121,0.07740949,64859.0,64858.0,1.1464096]
[1721290244360,0.00834,64859.0,64858.0,1.1464096]
[1721290244778,0.15484,64859.0,64858.0,0.5296796]
[1721290244899,0.27197274,64859.0,64858.0,0.2213146]
[1721290245323,0.38712228,64859.0,64858.0,0.2213146]
[1721290246490,0.27197274,64859.0,64858.0,0.2213146]
[1721290247619,0.27062527,64859.0,64858.0,0.2213146]
[1721290249601,0.27078956,64859.0,64858.0,0.2213146]
[1721290250965,0.27128577,64859.0,64858.0,0.5296796]
[1721290251151,0.21702212,64859.0,64858.0,1.2168096]
[1721290251297,0.00834,64859.0,64858.0,1.34484773]
[1721290251499,0.00834,64859.0,64858.0,1.95549447]
[1721290253347,0.00834,64859.0,64858.0,1.95449447]
[1721290253547,0.00834,64859.0,64858.0,1.95349447]
[1721290253783,0.00834,64859.0,64858.0,1.95449447]
[1721290253970,0.00834,64859.0,64858.0,1.95447566]
[1721290254127,0.00834,64859.0,64858.0,1.95547566]
[1721290254554,0.00834,64859.0,64858.0,1.95447566]
[1721290254751,0.00834,64859.0,64858.0,1.95347566]
[1721290254967,0.00834,64859.0,64858.0,1.95547566]
[1721290255141,0.00834,64859.0,64858.0,1.95447566]
[1721290256824,0.00834,64859.0,64858.0,1.95547566]
[1721290257027,0.00834,64859.0,64858.0,1.95547602]
[1721290257153,0.00834,64859.0,64858.0,1.95447602]
[1721290257546,0.00834,64859.0,64858.0,1.95547602]
[1721290258993,0.00834,64859.0,64858.0,1.95647602]
[1721290259690,0.00834,64859.0,64858.0,1.95547602]
[1721290260072,0.00834,64859.0,64858.0,1.95646285]
[1721290260275,0.00834,64859.0,64858.0,1.95446285]
[1721290260496,0.00834,64859.0,64858.0,1.95546285]
[1721290262182,0.00834,64859.0,64858.0,1.82745634]
[1721290262378,0.00834,64859.0,64858.0,1.95546308]
[1721290262806,0.00834,64859.0,64858.0,2.00546308]
[1721290263008,0.00834,64859.0,64858.0,2.10546308]
[1721290264292,0.00834,64859.0,64858.0,2.05546308]
[1721290264493,0.00834,64859.0,64858.0,2.10546111]
[1721290264950,0.00834,64859.0,64858.0,2.05546111]
[1721290266726,0.00834,64859.0,64858.0,2.05546124]
[1721290268725,0.00834,64859.0,64858.0,1.92745634]
[1721290268925,0.00834,64859.0,64858.0,2.05546198]
[1721290270283,0.00834,64859.0,64858.0,2.10546198]
[1721290270750,0.00834,64859.0,64858.0,2.05546198]
[1721290271115,0.00834,64859.0,64858.0,2.05546121]
[1721290271240,0.00834,64859.0,64858.0,1.92745634]
[1721290271645,0.00834,64859.0,64858.0,1.82745634]
[1721290271845,0.00834,64859.0,64858.0,1.92745634]
[1721290275149,0.00834,64859.0,64858.0,1.82745634]
[1721290275355,0.00834,64859.0,64858.0,1.92745634]
[1721290276503,0.15424,64859.0,64858.0,0.0441326]
[1721290277323,0.35446523,64859.0,64858.0,0.03855258]
[1721290277769,0.30842,64859.0,64858.0,0.04285906]
[1721290278153,0.30842,64859.0,64858.0,0.04385906]
[1721290278654,0.30842,64859.0,64858.0,0.03855258]
[1721290278858,0.30842,64859.0,64858.0,0.06155258]
[1721290279007,0.35446501,64859.0,64858.0,0.06155258]
[1721290279194,0.30842,64859.0,64858.0,0.06055258]
[1721290279392,0.35446501,64859.0,64858.0,0.06055258]
[1721290279631,0.35446501,64859.0,64858.0,0.06155258]
[1721290280618,0.30842,64859.0,64858.0,0.06155258]
[1721290280985,0.35446059,64859.0,64858.0,0.06155258]
[1721290283115,0.20028059,64859.0,64858.0,0.23740034]
[1721290283322,0.15424,64859.0,64858.0,0.55107182]
[1721290283526,0.15424,64859.0,64858.0,0.85943682]
[1721290283900,0.15424,64859.0,64858.0,0.85843682]
[1721290284107,0.15424,64859.0,64858.0,0.85743682]
[1721290284309,0.15424,64859.0,64858.0,0.85943682]
[1721290286397,0.15424,64859.0,64858.0,1.32218356]
[1721290286398,0.00834,64859.0,64858.0,1.32218356]
[1721290286606,0.00834,64859.0,64858.0,1.38248356]
[1721290286810,0.00834,64859.0,64858.0,1.69084856]
[1721290287009,0.00834,64859.0,64858.0,2.14921356]
[1721290288108,0.00834,64859.0,64858.0,2.09821356]
[1721290288312,0.00834,64859.0,64858.0,2.14921356]
[1721290288731,0.00834,64859.0,64858.0,2.09921356]
[1721290288963,0.00834,64859.0,64858.0,2.14921356]
[1721290289312,0.00834,64859.0,64858.0,2.14821356]
[1721290289520,0.00834,64859.0,64858.0,2.14921356]
[1721290290086,0.00834,64859.0,64858.0,2.22591356]
[1721290298542,0.08914,64859.0,64858.0,1.39918356]
[1721290299004,0.00834,64859.0,64858.0,1.39918356]
[1721290299406,0.00834,64859.0,64858.0,1.70754856]
[1721290299918,0.00834,64859.0,64858.0,1.73054856]
[1721290309998,0.00834,64859.0,64858.0,1.79228956]
[1721290316059,0.00834,64859.0,64858.0,1.96778956]
[1721290316248,0.00834,64859.0,64858.0,1.79228956]
[1721290316448,0.00834,64859.0,64858.0,1.86248956]
[1721290317205,0.14744,64859.0,64858.0,1.86248956]
[1721290317615,0.08654,64859.0,64858.0,1.86248956]
[1721290317993,0.00834,64859.0,64858.0,1.86248956]
[1721290325338,0.00834,64859.0,64858.0,1.99018956]
[1721290327632,0.00834,64859.0,64858.0,1.94018956]
[1721290328037,0.00834,64859.0,64858.0,1.99018956]
[1721290330031,0.00834,64859.0,64858.0,2.29855456]
[1721290330232,0.00834,64859.0,64858.0,2.36065456]
[1721290331275,0.00834,64867.0,64866.0,1.387471]
[1721290331481,0.00834,64867.0,64866.0,1.84575264]
[1721290331760,0.00834,64867.0,64866.0,2.28948215]
[1721290332683,0.00834,64867.0,64866.0,2.29048215]
[1721290332908,0.00834,64867.0,64866.0,2.29148215]
[1721290333137,0.00834,64867.0,64866.0,2.29048215]
[1721290333363,0.00834,64867.0,64866.0,2.31348215]
[1721290334181,0.00834,64867.0,64866.0,2.31248215]
[1721290334483,0.00834,64867.0,64866.0,2.31348215]
[1721290334670,0.00834,64867.0,64866.0,2.18338215]
[1721290334873,0.00834,64867.0,64866.0,2.26348215]
[1721290335023,0.00834,64867.0,64866.0,2.31448215]
[1721290335678,0.00834,64867.0,64866.0,2.26448215]
[1721290335890,0.00834,64867.0,64866.0,2.11788215]
[1721290336037,0.14574,64867.0,64866.0,1.71635515]
[1721290336226,0.14574,64867.0,64866.0,1.78655515]
[1721290337482,0.14574,64867.0,64866.0,1.80955515]
[1721290340274,0.00834,64867.0,64866.0,1.95445515]
[1721290340476,0.00834,64867.0,64866.0,2.31278215]
[1721290342295,0.00834,64867.0,64866.0,2.41788215]
[1721290343197,0.00834,64867.0,64866.0,2.22298215]
[1721290344621,0.00834,64867.0,64866.0,1.91465515]
[1721290345025,0.00834,64867.0,64866.0,2.22298215]
[1721290345232,0.00834,64871.0,64870.0,1.437386]
[1721290345531,0.00834,64871.0,64870.0,1.81295889]
[1721290345753,0.00834,64871.0,64870.0,2.12126689]
[1721290346158,0.15004,64871.0,64870.0,1.69705889]
[1721290346599,0.15004,64871.0,64870.0,1.69905889]
[1721290346819,0.15004,64871.0,64870.0,1.71461926]
[1721290347621,0.15004,64871.0,64870.0,1.73761926]
[1721290348029,0.15004,64871.0,64870.0,1.73561926]
[1721290348326,0.15004,64871.0,64870.0,1.73761926]
[1721290349318,0.15004,64871.0,64870.0,1.73661926]
[1721290349849,0.15004,64871.0,64870.0,1.73761926]
[1721290351694,0.15004,64871.0,64870.0,1.73661926]
[1721290351897,0.15004,64871.0,64870.0,1.73761926]
[1721290352547,0.08424,64871.0,64870.0,1.73761926]
[1721290353179,0.08424,64871.0,64870.0,1.73561926]
[1721290353469,0.08424,64871.0,64870.0,1.73761926]
[1721290354798,0.00834,64876.0,64875.0,1.387282]
[1721290354975,0.00834,64876.0,64875.0,1.61448182]
[1721290355180,0.00834,64876.0,64875.0,1.61976616]
[1721290355554,0.00834,64876.0,64875.0,1.65068616]
[1721290355940,0.00834,64876.0,64875.0,2.07805116]
[1721290356139,0.00834,64876.0,64875.0,2.07905116]
[1721290356944,0.00834,64876.0,64875.0,2.13193116]
[1721290357954,0.00834,64876.0,64875.0,2.13293116]
[1721290358527,0.00834,64876.0,64875.0,2.13393116]
[1721290359023,0.00834,64876.0,64875.0,2.13293116]
[1721290359232,0.00834,64876.0,64875.0,2.13393116]
[1721290359438,0.00834,64876.0,64875.0,2.19923116]
[1721290359641,0.0796,64887.0,64886.0,1.387044]
[1721290359876,0.0796,64887.0,64886.0,1.78255781]
[1721290360097,0.0607,64890.0,64889.0,1.078763]
[1721290360271,0.0607,64890.0,64889.0,1.28341644]
[1721290360410,0.0809,64891.0,64890.0,1.078745]
[1721290360611,0.0809,64891.0,64890.0,1.28339844]
[1721290360813,0.0809,64891.0,64890.0,1.31030705]
[1721290361674,0.00834,64892.0,64891.0,1.078731]
[1721290361850,0.00834,64892.0,64891.0,1.30537783]
[1721290362049,0.00834,64892.0,64891.0,1.61882962]
[1721290362323,0.00834,64900.0,64894.0,0.924582]
[1721290362470,0.00834,64900.0,64899.0,0.462256]
[1721290362650,0.00834,64900.0,64899.0,1.83171583]
[1721290362851,0.00834,64900.0,64899.0,1.83695721]
[1721290363057,0.00834,64900.0,64899.0,2.19512821]
[1721290363659,0.00834,64900.0,64899.0,2.17600821]
[1721290363946,0.00834,64907.0,64906.0,1.417496]
[1721290364107,0.00834,64907.0,64906.0,2.10457983]
[1721290364330,0.00834,64907.0,64906.0,2.30980386]
[1721290364917,0.14954,64907.0,64906.0,1.80166686]
[1721290365115,0.14954,64907.0,64906.0,1.77178686]
[1721290365313,0.14954,64907.0,64906.0,1.78834723]
[1721290365719,0.14954,64907.0,64906.0,1.78634723]
[1721290365929,0.14954,64907.0,64906.0,1.81034723]
[1721290366119,0.14954,64907.0,64906.0,1.81134723]
[1721290366467,0.14954,64907.0,64906.0,1.63504723]
[1721290366668,0.14954,64907.0,64906.0,1.81134723]
[1721290367460,0.00834,64907.0,64906.0,1.81134723]
[1721290367656,0.00834,64907.0,64906.0,1.81034723]
[1721290368056,0.00834,64907.0,64906.0,1.81134723]
[1721290373840,0.00834,64907.0,64906.0,1.87304423]
[1721290375935,0.00834,64907.0,64906.0,1.87204423]
[1721290376499,0.00834,64907.0,64906.0,1.87304423]
[1721290377829,0.00771449,64907.0,64906.0,1.87304423]
[1721290378591,0.14601449,64907.0,64906.0,0.90408849]
[1721290378779,0.30008049,64907.0,64906.0,0.05548912]
[1721290379125,0.30008049,64907.0,64887.0,0.1753]
[1721290379126,0.1418,64903.0,64899.0,0.154085]
[1721290379328,0.1418,64903.0,64892.0,0.308204]
[1721290379329,0.21897479,64900.0,64896.0,0.308185]
[1721290379539,0.154093,64896.0,64893.0,0.11099299]
[1721290379738,0.0632,64893.0,64890.0,0.154106]
[1721290380009,0.1386,64889.0,64875.0,0.1753]
[1721290380240,0.1386,64889.0,64879.0,0.308261]
[1721290380421,0.1386,64889.0,64885.0,0.154117]
[1721290381668,0.1386,64889.0,64886.0,0.023]
[1721290382208,0.1386,64889.0,64885.0,0.001]
[1721290382209,0.1386,64889.0,64888.0,0.462334]
[1721290382354,0.1386,64889.0,64888.0,0.53467892]
[1721290383594,0.1386,64889.0,64888.0,0.84290192]
[1721290383780,0.1386,64889.0,64888.0,1.136666]
[1721290384673,0.1386,64889.0,64888.0,1.29104774]
[1721290384897,0.0754,64889.0,64888.0,1.29204774]
[1721290385549,0.0754,64889.0,64888.0,1.29004774]
[1721290385696,0.0754,64889.0,64888.0,1.29204774]
[1721290385903,0.0754,64889.0,64888.0,1.29104774]
[1721290386109,0.0766,64895.0,64888.0,0.21226774]
[1721290386312,0.0617,64898.0,64897.0,0.15409]
[1721290386510,0.0766,64901.0,64900.0,1.078581]
[1721290386729,0.0766,64901.0,64900.0,1.44214874]
[1721290386881,0.0766,64901.0,64900.0,1.44713024]
[1721290387321,0.0617,64904.0,64903.0,1.078532]
[1721290387549,0.0617,64904.0,64903.0,1.28979974]
[1721290387781,0.0617,64904.0,64903.0,1.29477315]
[1721290389009,0.0617,64904.0,64903.0,1.29577315]
[1721290389427,0.06072563,64904.0,64903.0,1.29577315]
[1721290389623,0.06072563,64904.0,64903.0,1.29677315]
[1721290392033,0.06072563,64904.0,64903.0,0.83423941]
[1721290394264,0.06072563,64904.0,64903.0,0.52608741]
[1721290396137,0.06072563,64904.0,64903.0,0.83423941]
[1721290397301,0.06072563,64904.0,64903.0,0.52608741]
[1721290398261,0.09101449,64907.0,64906.0,0.462205]
[1721290398461,0.09101449,64907.0,64906.0,0.53159254]
[1721290398665,0.09101449,64907.0,64906.0,0.84468277]
[1721290399110,0.09101449,64907.0,64906.0,1.15281977]
[1721290399111,0.00771449,64907.0,64906.0,1.15281977]
[1721290399523,0.00771449,64907.0,64906.0,1.15381977]
[1721290399692,0.13929649,64912.0,64911.0,0.462171]
[1721290399948,0.13929649,64912.0,64911.0,0.53360104]
[1721290400149,0.13929649,64912.0,64911.0,0.53855396]
[1721290400776,0.13929649,64912.0,64911.0,0.53955396]
[1721290401099,0.13929649,64912.0,64911.0,0.23143996]
[1721290401303,0.49343731,64912.0,64911.0,0.07838296]
[1721290401685,0.60145949,64912.0,64911.0,0.07343004]
[1721290401978,0.29335049,64912.0,64911.0,0.07343004]
[1721290402187,0.33940092,64912.0,64911.0,0.07343004]
[1721290402412,0.13929649,64912.0,64911.0,0.07837807]
[1721290402587,0.14209049,64912.0,64911.0,0.07837807]
[1721290403540,0.13929649,64912.0,64911.0,0.07837807]
[1721290403737,0.20837757,64912.0,64911.0,0.07837807]
[1721290404976,0.20837757,64912.0,64911.0,0.07343004]
[1721290405777,0.13929649,64912.0,64911.0,0.07343004]
[1721290405974,0.20839569,64912.0,64911.0,0.07343004]
[1721290406202,0.21118969,64912.0,64911.0,0.07343004]
[1721290406755,0.14209049,64912.0,64911.0,0.07343004]
[1721290406955,0.21119526,64912.0,64911.0,0.07343004]
[1721290407242,0.14209049,64912.0,64911.0,0.07343004]
[1721290407589,0.29614449,64912.0,64911.0,0.07343004]
[1721290407790,0.29335049,64912.0,64911.0,0.07343004]
[1721290408958,0.60145949,64912.0,64911.0,0.07343004]
[1721290410382,0.69558973,64912.0,64911.0,0.07343004]
[1721290410511,1.00369873,64912.0,64911.0,0.07343004]
[1721290410712,1.11887583,64912.0,64911.0,0.07343004]
[1721290411124,1.11890321,64912.0,64911.0,0.07243004]
[1721290411321,1.11973321,64912.0,64911.0,0.07243004]
[1721290411521,1.11974453,64912.0,64911.0,0.07343004]
[1721290411914,1.15586436,64912.0,64911.0,0.07343004]
[1721290412124,1.46397336,64912.0,64911.0,0.07243004]
[1721290412344,1.51007339,64912.0,64911.0,0.07143004]
[1721290412547,1.31222873,64912.0,64911.0,0.07343004]
[1721290412964,1.35873779,64912.0,64911.0,0.07343004]
[1721290413515,1.35873779,64912.0,64911.0,0.07243004]
[1721290413833,1.35873779,64912.0,64911.0,0.07343004]
[1721290414215,1.35873779,64912.0,64911.0,0.07243004]
[1721290414394,1.35873779,64912.0,64911.0,0.07343004]
[1721290414598,1.35914825,64912.0,64911.0,0.07343004]
[1721290415208,1.21850749,64912.0,64911.0,0.07343004]
[1721290415429,1.35921605,64912.0,64911.0,0.07343004]
[1721290417256,1.38332039,64912.0,64911.0,0.07343004]
[1721290417660,2.12068625,64912.0,64911.0,0.05043004]
[1721290417944,2.37830511,64912.0,64911.0,0.05043004]
[1721290418121,2.42830511,64912.0,64911.0,0.05043004]
[1721290418424,2.36956204,64912.0,64911.0,0.05043004]
[1721290418649,2.41956126,64912.0,64911.0,0.04843004]
[1721290418969,2.41956126,64912.0,64911.0,0.05043004]
[1721290419177,2.57519947,64912.0,64911.0,0.025]
[1721290419386,2.57519947,64912.0,64911.0,0.002]
[1721290419387,2.41956126,64912.0,64911.0,0.002]
[1721290419595,2.12997769,64912.0,64911.0,0.002]
[1721290419798,2.4958832,64912.0,64911.0,0.002]
[1721290419998,2.4958832,64912.0,64911.0,0.05648727]
[1721290420576,2.73103896,64912.0,64911.0,0.05648727]
[1721290420783,2.73103896,64912.0,64911.0,0.05647159]
[1721290420957,2.4958832,64912.0,64911.0,0.05647159]
[1721290421113,2.4958832,64912.0,64911.0,0.05747159]
[1721290421314,2.4958832,64912.0,64911.0,0.05647159]
[1721290421661,2.48938909,64912.0,64911.0,0.05747159]
[1721290422014,2.35672512,64912.0,64911.0,0.05747159]
[1721290422993,2.24235,64912.0,64911.0,0.05747159]
[1721290423369,2.24235,64912.0,64911.0,0.05647159]
[1721290423572,2.24235,64912.0,64911.0,0.05747159]
[1721290424076,2.24235,64912.0,64911.0,0.05647159]
[1721290424248,2.24235,64912.0,64911.0,0.05547159]
[1721290424603,2.24235,64912.0,64911.0,0.05747159]
[1721290424828,2.24244068,64912.0,64911.0,0.05647159]
[1721290424979,2.24244068,64912.0,64911.0,0.05547159]
[1721290425179,2.24244068,64912.0,64911.0,0.05747159]
[1721290425180,2.29244068,64912.0,64911.0,0.05747159]
[1721290425379,2.24244068,64912.0,64911.0,0.05747159]
[1721290425786,2.24244068,64912.0,64911.0,0.05647159]
[1721290426209,2.24244068,64912.0,64911.0,0.05747159]
[1721290426724,2.24244068,64912.0,64911.0,0.05647159]
[1721290426867,2.24244068,64912.0,64911.0,0.05747159]
[1721290427063,2.44679025,64912.0,64911.0,0.05747159]
[1721290427518,2.75489925,64912.0,64911.0,0.05547159]
[1721290427693,2.98851205,64912.0,64911.0,0.05747159]
[1721290427894,3.0673247,64912.0,64911.0,0.05568564]
[1721290428278,3.0673247,64912.0,64911.0,0.05468564]
[1721290428473,3.0673247,64912.0,64911.0,0.05568564]
[1721290428922,2.98357957,64912.0,64911.0,0.05468564]
[1721290429098,3.06768311,64912.0,64911.0,0.04555818]
[1721290429315,3.06768311,64912.0,64911.0,0.04655818]
[1721290429512,2.98357957,64912.0,64911.0,0.04655818]
[1721290429920,3.06768327,64912.0,64911.0,0.04555818]
[1721290430184,2.84432931,64912.0,64911.0,0.04655818]
[1721290430384,3.0556319,64912.0,64911.0,0.04655818]
[1721290431100,3.05604902,64912.0,64911.0,0.04655818]
[1721290432192,2.82243622,64912.0,64911.0,0.04655818]
[1721290432358,2.73831668,64912.0,64911.0,0.04655818]
[1721290432955,2.43020768,64912.0,64911.0,0.04655818]
[1721290433223,2.11995214,64912.0,64911.0,0.04655818]
[1721290433527,2.386539,64912.0,64911.0,0.04655818]
[1721290433930,2.436539,64912.0,64911.0,0.04555818]
[1721290434362,2.30858498,64912.0,64911.0,0.04655818]
[1721290434574,2.43271451,64912.0,64911.0,0.04655818]
[1721290435141,2.43271451,64912.0,64911.0,0.04555818]
[1721290435341,2.43271451,64912.0,64911.0,0.04655818]
[1721290435712,2.43271451,64912.0,64911.0,0.04555818]
[1721290435919,2.27836494,64912.0,64911.0,0.0496688]
[1721290436326,2.27836494,64912.0,64911.0,0.0506688]
[1721290437531,2.22422478,64912.0,64911.0,0.0506688]
[1721290437856,2.27422478,64912.0,64911.0,0.0506688]
[1721290438795,2.27422478,64912.0,64911.0,0.0496688]
[1721290439305,2.42857435,64912.0,64911.0,0.04254345]
[1721290439525,2.51279895,64912.0,64911.0,0.04354345]
[1721290439967,0.05,64904.0,64903.0,0.000913]
[1721290440171,2.22064782,64904.0,64903.0,0.000913]
[1721290440344,3.14126135,64904.0,64903.0,0.000913]
[1721290440700,3.11775164,64904.0,64903.0,0.000913]
[1721290440900,0.154128,64881.0,64880.0,0.025]
[1721290441115,0.54749269,64881.0,64880.0,0.025]
[1721290441267,0.83533589,64881.0,64880.0,0.0299222]
[1721290441470,0.83533589,64881.0,64880.0,0.025]
[1721290442044,0.95058944,64881.0,64880.0,0.025]
[1721290442221,0.95058944,64881.0,64880.0,0.1891]
[1721290442759,0.94750007,64881.0,64880.0,0.22313931]
[1721290442960,0.94750007,64881.0,64880.0,0.22413931]
[1721290443159,0.83228069,64881.0,64880.0,0.22806151]
[1721290443826,0.80728069,64881.0,64880.0,0.22313931]
[1721290443964,0.80728069,64881.0,64880.0,0.22413931]
[1721290444365,0.89941314,64881.0,64880.0,0.22413931]
[1721290444816,0.89941314,64881.0,64880.0,0.22513931]
[1721290445401,0.80728069,64881.0,64880.0,0.22513931]
[1721290446046,0.49833247,64881.0,64880.0,0.22513931]
[1721290446212,0.59045245,64881.0,64880.0,0.22513931]
[1721290446409,0.52950398,64881.0,64880.0,0.23006151]
[1721290446633,0.437384,64881.0,64880.0,0.23006151]
[1721290447238,0.49839837,64881.0,64880.0,0.23006151]
[1721290447498,0.74564,64881.0,64880.0,0.23006151]
[1721290447986,0.74564,64881.0,64880.0,0.22513931]
[1721290448583,0.81471272,64881.0,64880.0,0.22513931]
[1721290449116,0.81471272,64881.0,64880.0,0.14973931]
[1721290449646,0.81471272,64881.0,64880.0,0.08403931]
[1721290451177,0.81471272,64881.0,64880.0,0.08303931]
[1721290451385,0.81471272,64881.0,64880.0,0.05803931]
[1721290451705,0.50645672,64881.0,64880.0,0.05803931]
[1721290451913,0.50645672,64881.0,64880.0,0.05903931]
[1721290452072,0.04604372,64881.0,64880.0,0.19863931]
[1721290452274,0.154124,64883.0,64880.0,0.20356151]
[1721290452478,0.154124,64883.0,64881.0,0.023]
[1721290452681,0.154124,64883.0,64882.0,0.0049415]
[1721290452862,0.154124,64883.0,64882.0,0.06101724]
[1721290453266,0.35428972,64884.0,64882.0,0.21514224]
[1721290453267,0.04604372,64884.0,64882.0,0.21514224]
[1721290453523,0.04604372,64884.0,64883.0,0.023]
[1721290453720,0.20016472,64884.0,64883.0,0.05607574]
[1721290453922,0.20016472,64884.0,64883.0,0.0610333]
[1721290454426,0.04604372,64884.0,64883.0,0.0610333]
[1721290454864,0.20016472,64884.0,64883.0,0.0610333]
[1721290455054,0.8836029,64884.0,64883.0,0.0390333]
[1721290455261,1.28630118,64884.0,64883.0,0.0400333]
[1721290455462,1.441439,64884.0,64883.0,0.03507574]
[1721290455639,1.34931979,64884.0,64883.0,0.03507574]
[1721290455956,1.34931979,64884.0,64883.0,0.03607574]
[1721290456667,1.34931979,64884.0,64883.0,0.03507574]
[1721290457047,1.34931979,64884.0,64883.0,0.03607574]
[1721290457427,1.34931979,64884.0,64883.0,0.03507574]
[1721290457856,1.34931979,64884.0,64883.0,0.03607574]
[1721290458057,1.34931979,64884.0,64883.0,0.03407574]
[1721290458240,1.46267125,64884.0,64883.0,0.03407574]
[1721290458454,1.46267125,64884.0,64883.0,0.03507574]
[1721290459105,1.34749281,64884.0,64883.0,0.03507574]
[1721290460599,1.39797965,64884.0,64883.0,0.03507574]
[1721290461442,1.39730922,64884.0,64883.0,0.03507574]
[1721290462174,1.18985504,64884.0,64883.0,0.03507574]
[1721290462434,1.18998,64884.0,64883.0,0.03507574]
[1721290462845,1.34436174,64884.0,64883.0,0.03507574]
[1721290463691,1.36847773,64884.0,64883.0,0.03507574]
[1721290464015,1.36847773,64884.0,64883.0,0.03407574]
[1721290464218,1.49871131,64884.0,64883.0,0.03507574]
[1721290464638,1.49818082,64884.0,64883.0,0.03407574]
[1721290464846,1.78204578,64884.0,64883.0,0.03307574]
[1721290465046,1.66064996,64884.0,64883.0,0.03407574]
[1721290465241,1.64334312,64884.0,64883.0,0.03407574]
[1721290465469,1.66066459,64884.0,64883.0,0.03407574]
[1721290465621,1.66066459,64884.0,64883.0,0.03507574]
[1721290465819,1.66066459,64884.0,64883.0,0.03407574]
[1721290466344,1.66066459,64884.0,64883.0,0.03507574]
[1721290466907,1.66066459,64884.0,64883.0,0.03407574]
[1721290467107,1.66066459,64884.0,64883.0,0.03507574]
[1721290467662,1.52220439,64884.0,64883.0,0.03407574]
[1721290468039,1.52220439,64884.0,64883.0,0.03507574]
[1721290468241,1.66057181,64884.0,64883.0,0.03407574]
[1721290468445,1.52220439,64884.0,64883.0,0.03407574]
[1721290468807,1.52220439,64884.0,64883.0,0.03507574]
[1721290469008,1.66057181,64884.0,64883.0,0.03507574]
[1721290469412,1.52220439,64884.0,64883.0,0.03407574]
[1721290469621,1.52220439,64884.0,64883.0,0.03507574]
[1721290469850,1.66057181,64884.0,64883.0,0.03507574]
[1721290470254,1.66059593,64884.0,64883.0,0.03407574]
[1721290470850,1.66002487,64884.0,64883.0,0.03407574]
[1721290471061,1.36731754,64884.0,64883.0,0.03407574]
[1721290471288,0.9046938,64884.0,64883.0,0.03407574]
[1721290471493,0.88057745,64884.0,64883.0,0.03307574]
[1721290471689,0.88057745,64884.0,64883.0,0.03407574]
[1721290472148,0.88057745,64884.0,64883.0,0.03307574]
[1721290472289,0.88057745,64884.0,64883.0,0.09607574]
[1721290472290,0.90469155,64884.0,64883.0,0.09607574]
[1721290472684,0.90469155,64884.0,64883.0,0.11807574]
[1721290472685,0.13408655,64884.0,64883.0,0.11807574]
[1721290472879,0.28820755,64884.0,64883.0,0.12303712]
[1721290473105,0.28820755,64884.0,64883.0,0.12403712]
[1721290473512,0.28820755,64884.0,64883.0,0.12303712]
[1721290473720,0.28820755,64884.0,64883.0,0.12403712]
[1721290473915,0.1782351,64884.0,64883.0,0.12403712]
[1721290474084,0.29118597,64884.0,64883.0,0.12403712]
[1721290474286,0.29118597,64884.0,64883.0,0.12303712]
[1721290474503,0.29118597,64884.0,64883.0,0.12403712]
[1721290474704,0.29118597,64884.0,64883.0,0.12303712]
[1721290475071,0.29118597,64884.0,64883.0,0.12403712]
[1721290475486,0.1782351,64884.0,64883.0,0.12403712]
[1721290475665,0.97500647,64884.0,64883.0,0.04003712]
[1721290476003,0.97500647,64884.0,64883.0,0.03507574]
[1721290476198,0.97500647,64884.0,64883.0,0.03407574]
[1721290476596,0.97500647,64884.0,64883.0,0.03507574]
[1721290477005,1.42274847,64884.0,64883.0,0.03507574]
[1721290477199,1.42182826,64884.0,64883.0,0.03407574]
[1721290477559,1.30981289,64884.0,64883.0,0.03507574]
[1721290477763,1.4213557,64884.0,64883.0,0.03507574]
[1721290477968,1.55984215,64884.0,64883.0,0.03307574]
[1721290478367,1.55984215,64884.0,64883.0,0.03507574]
[1721290479538,1.54547047,64884.0,64883.0,0.03507574]
[1721290480343,1.43225196,64884.0,64883.0,0.03507574]
[1721290480492,1.33821072,64884.0,64883.0,0.03507574]
[1721290483402,1.1029611,64884.0,64883.0,0.03507574]
[1721290483611,1.33901581,64884.0,64883.0,0.03507574]
[1721290484223,1.33901581,64884.0,64883.0,0.03407574]
[1721290484625,1.36925392,64884.0,64883.0,0.03407574]
[1721290484825,1.36925392,64884.0,64883.0,0.03507574]
[1721290485269,1.52524467,64884.0,64883.0,0.03507574]
[1721290486634,1.1825446,64884.0,64883.0,0.03407574]
[1721290486816,1.52590188,64884.0,64883.0,0.03507574]
[1721290487212,1.52590188,64884.0,64883.0,0.03407574]
[1721290487637,1.49566377,64884.0,64883.0,0.03507574]
[1721290488242,0.41480088,64884.0,64883.0,0.03507574]
[1721290488573,0.41480088,64884.0,64883.0,0.12483771]
[1721290488899,0.41480088,64884.0,64883.0,0.12383771]